bitfinex/quotes_SOLUSD_20230105
["timestamp","ask_amount","ask_price","bid_price","bid_amount"]
[1672919782507,43.7418635,13.307,13.295,56.46]
[1672919783141,20.0,13.305,13.292,56.47]
[1672919783354,20.0,13.304,13.293,20.0]
[1672919784201,20.0,13.304,13.291,20.0]
[1672919785346,20.0,13.305,13.291,20.0]
[1672919787035,20.0,13.305,13.292,22.41737149]
[1672919787253,20.0,13.305,13.294,20.0]
[1672919788302,20.0,13.305,13.293,56.46]
[1672919788511,20.0,13.305,13.293,20.0]
[1672919789562,76.41,13.305,13.291,76.47]
[1672919791437,20.0,13.305,13.291,76.47]
[1672919792404,40.0,13.305,13.291,76.47]
[1672919792715,40.0,13.305,13.291,56.47]
[1672919793035,20.0,13.304,13.291,56.47]
[1672919793222,76.42,13.304,13.289,108.2172]
[1672919793434,76.42,13.304,13.29,56.48]
[1672919793647,76.42,13.304,13.291,20.0]
[1672919794182,96.41,13.305,13.291,20.0]
[1672919795432,20.0,13.305,13.291,20.0]
[1672919795647,20.0,13.305,13.292,56.47]
[1672919795848,20.0,13.305,13.293,20.0]
[1672919796059,20.0,13.305,13.295,20.0]
[1672919796281,20.0,13.306,13.296,56.45]
[1672919796479,20.0,13.306,13.295,20.0]
[1672919797853,20.0,13.306,13.294,56.46]
[1672919799651,156.0816635,13.307,13.294,56.46]
[1672919799860,43.7418635,13.307,13.296,20.0]
[1672919800180,43.7418635,13.307,13.298,20.0]
[1672919801443,43.7418635,13.307,13.297,56.45]
[1672919801629,43.7418635,13.307,13.298,20.0]
[1672919801837,43.7418635,13.307,13.299,17.0]
[1672919802048,43.7418635,13.307,13.3,20.0]
[1672919802784,43.7418635,13.307,13.3,42.41737149]
[1672919803205,43.7418635,13.307,13.3,20.0]
[1672919805341,43.7418635,13.307,13.299,56.44]
[1672919805525,43.7418635,13.307,13.296,76.45]
[1672919806055,43.7418635,13.307,13.297,22.41737149]
[1672919806263,43.7418635,13.307,13.298,76.44]
[1672919807941,43.7418635,13.307,13.298,98.85737149]
[1672919808363,43.7418635,13.307,13.3,20.0]
[1672919808583,43.7418635,13.307,13.3,76.44]
[1672919809954,43.7418635,13.307,13.301,17.0]
[1672919810152,43.7418635,13.307,13.3,98.85737149]
[1672919810584,43.7418635,13.307,13.302,20.0]
[1672919811112,43.7418635,13.307,13.302,42.41737149]
[1672919811299,43.7418635,13.307,13.303,17.0]
[1672919811509,43.7418635,13.307,13.303,73.42]
[1672919811716,43.7418635,13.307,13.304,20.0]
[1672919812358,57.0385985,13.313,13.305,92.70300149]
[1672919812573,57.0385985,13.313,13.306,20.0]
[1672919812798,57.0385985,13.313,13.308,20.0]
[1672919812979,57.0385985,13.313,13.309,56.4]
[1672919814453,57.0385985,13.313,13.31,20.0]
[1672919815098,29.7126514,13.32,13.31,20.0]
[1672919815296,29.7126514,13.32,13.311,115.80737149]
[1672919815499,29.7126514,13.32,13.312,13.86834]
[1672919815729,29.7126514,13.32,13.313,56.38]
[1672919816040,29.7126514,13.32,13.312,56.38]
[1672919816261,29.7126514,13.32,13.311,56.39]
[1672919816473,29.7126514,13.32,13.312,20.0]
[1672919816660,29.7126514,13.32,13.313,56.38]
[1672919816871,115.626,13.325,13.313,56.38]
[1672919817095,197.1950938,13.32,13.313,56.38]
[1672919817308,197.1950938,13.32,13.311,56.39]
[1672919817521,197.1950938,13.32,13.312,20.0]
[1672919817829,197.1950938,13.32,13.312,42.41737149]
[1672919818048,197.1950938,13.32,13.314,20.0]
[1672919818244,197.1950938,13.32,13.315,76.37]
[1672919818573,197.1950938,13.32,13.315,78.78737149]
[1672919818767,197.1950938,13.32,13.312,20.0]
[1672919818768,197.1950938,13.32,13.313,56.38]
[1672919819413,197.1950938,13.32,13.313,22.41737149]
[1672919819622,197.1950938,13.32,13.315,20.0]
[1672919819940,197.1950938,13.32,13.316,56.37]
[1672919820131,197.1950938,13.32,13.315,76.37]
[1672919820457,197.1950938,13.32,13.314,22.41737149]
[1672919820660,197.1950938,13.32,13.315,56.37]
[1672919820874,197.1950938,13.32,13.312,20.0]
[1672919821082,197.1950938,13.32,13.314,22.41737149]
[1672919821289,197.1950938,13.32,13.313,56.38]
[1672919821813,197.1950938,13.32,13.314,20.0]
[1672919822894,197.1950938,13.32,13.314,42.41737149]
[1672919823484,197.1950938,13.32,13.316,20.0]
[1672919823822,197.1950938,13.32,13.317,78.77737149]
[1672919824011,197.1950938,13.32,13.316,20.0]
[1672919824222,197.1950938,13.32,13.318,20.0]
[1672919824427,197.1950938,13.32,13.319,56.35]
[1672919824640,197.1950938,13.32,13.319,78.76737149]
[1672919825081,176.0441938,13.32,13.319,78.76737149]
[1672919825267,170.9696938,13.32,13.319,78.76737149]
[1672919825482,25.5274,13.327,13.32,20.0]
[1672919825686,25.5274,13.327,13.314,42.41737149]
[1672919825920,25.5274,13.327,13.314,20.0]
[1672919826240,25.5274,13.327,13.311,20.0]
[1672919826546,20.0,13.325,13.311,42.41737149]
[1672919826755,56.33,13.324,13.311,20.0]
[1672919827173,56.33,13.326,13.313,56.38]
[1672919827505,40.0,13.325,13.312,56.38]
[1672919827811,56.33,13.324,13.311,20.0]
[1672919828023,56.33,13.324,13.31,76.39]
[1672919829375,56.33,13.324,13.311,22.41737149]
[1672919829704,56.33,13.324,13.31,76.39]
[1672919829890,56.33,13.324,13.31,98.80737149]
[1672919830313,56.33,13.324,13.308,76.4]
[1672919830530,38.49,13.32,13.307,20.0]
[1672919830744,56.35,13.319,13.307,20.0]
[1672919831168,56.35,13.319,13.308,56.4]
[1672919831370,38.49,13.32,13.307,20.0]
[1672919831576,94.84,13.32,13.306,20.0]
[1672919831805,94.84,13.32,13.305,56.41]
[1672919832005,20.0,13.319,13.305,56.41]
[1672919832215,56.36,13.318,13.305,56.41]
[1672919832420,56.36,13.318,13.306,20.0]
[1672919832632,56.35,13.319,13.306,20.0]
[1672919832841,20.0,13.318,13.306,20.0]
[1672919833052,58.49,13.32,13.306,20.0]
[1672919833596,76.35,13.319,13.306,20.0]
[1672919834515,76.35,13.319,13.305,56.41]
[1672919834938,76.35,13.319,13.304,76.42]
[1672919835375,76.35,13.319,13.304,56.42]
[1672919835567,76.35,13.319,13.301,56.43]
[1672919835779,134.1469,13.318,13.3,56.44]
[1672919835999,56.36,13.317,13.301,22.41737149]
[1672919836216,20.0,13.316,13.301,22.41737149]
[1672919836412,76.37,13.315,13.301,22.41737149]
[1672919836617,20.0,13.314,13.301,42.41737149]
[1672919836838,132.7755,13.314,13.301,42.41737149]
[1672919837055,132.7755,13.314,13.3,56.44]
[1672919837588,132.7755,13.314,13.301,22.41737149]
[1672919837779,132.7755,13.314,13.302,20.0]
[1672919838743,112.7755,13.314,13.304,20.0]
[1672919839243,112.7755,13.314,13.304,76.42]
[1672919839455,112.7755,13.314,13.304,98.83737149]
[1672919839686,112.7755,13.314,13.304,42.41737149]
[1672919840721,112.7755,13.314,13.304,22.41737149]
[1672919842306,112.7755,13.314,13.303,56.42]
[1672919842515,169.1555,13.314,13.303,20.0]
[1672919842935,112.7755,13.314,13.303,20.0]
[1672919843476,112.7755,13.314,13.302,56.43]
[1672919844088,112.7755,13.314,13.303,20.0]
[1672919844509,112.7755,13.314,13.305,20.0]
[1672919846941,112.7755,13.314,13.303,20.0]
[1672919847357,169.1555,13.314,13.302,56.43]
[1672919847685,169.1555,13.314,13.301,56.43]
[1672919847998,169.1555,13.314,13.3,98.85737149]
[1672919849048,112.7755,13.314,13.3,98.85737149]
[1672919849260,169.1555,13.314,13.3,76.44]
[1672919849657,38.49,13.31,13.3,56.44]
[1672919849870,38.49,13.31,13.3,20.0]
[1672919850080,38.49,13.31,13.299,56.44]
[1672919850303,38.49,13.31,13.298,76.44]
[1672919851023,38.49,13.31,13.298,98.85737149]
[1672919851779,38.49,13.31,13.298,76.44]
[1672919851997,20.0,13.309,13.298,56.44]
[1672919852178,56.4,13.308,13.288,20.0]
[1672919852393,38.49,13.3,13.288,20.0]
[1672919852601,38.49,13.3,13.289,22.41737149]
[1672919852826,38.49,13.3,13.29,56.48]
[1672919853063,38.49,13.3,13.291,20.0]
[1672919853371,38.49,13.3,13.29,78.89737149]
[1672919854296,76.42,13.304,13.29,78.89737149]
[1672919855243,76.42,13.304,13.29,22.41737149]
[1672919855445,38.49,13.3,13.29,22.41737149]
[1672919855875,38.49,13.3,13.288,56.49]
[1672919856085,147.068,13.3,13.288,20.0]
[1672919856297,147.068,13.3,13.289,78.89737149]
[1672919856501,147.068,13.3,13.289,56.48]
[1672919856727,147.068,13.3,13.289,78.89737149]
[1672919857140,147.068,13.3,13.289,22.41737149]
[1672919857768,20.0,13.299,13.287,56.49]
[1672919858408,20.0,13.299,13.287,78.90737149]
[1672919858828,147.068,13.3,13.287,78.90737149]
[1672919859674,147.068,13.3,13.288,20.0]
[1672919859878,108.578,13.3,13.289,56.48]
[1672919860077,108.578,13.3,13.29,20.0]
[1672919860285,108.578,13.3,13.29,42.41737149]
[1672919861044,56.42,13.304,13.292,20.0]
[1672919861236,56.41,13.306,13.293,56.46]
[1672919861448,20.0,13.303,13.292,56.47]
[1672919862094,20.0,13.299,13.289,78.89737149]
[1672919862290,20.0,13.299,13.289,22.41737149]
[1672919862616,38.21,13.3,13.289,22.41737149]
[1672919862825,149.9506,13.3,13.29,56.48]
[1672919863048,111.7406,13.3,13.291,20.0]
[1672919863258,111.7406,13.3,13.29,78.89737149]
[1672919863446,111.7406,13.3,13.288,56.49]
[1672919864202,111.7406,13.3,13.289,22.41737149]
[1672919864414,111.7406,13.3,13.29,56.48]
[1672919865884,111.7406,13.3,13.291,22.41737149]
[1672919866286,111.7406,13.3,13.292,20.0]
[1672919866497,111.7406,13.3,13.292,76.47]
[1672919866712,111.7406,13.3,13.292,20.0]
[1672919867138,111.7406,13.3,13.291,22.41737149]
[1672919867439,150.2306,13.3,13.288,56.49]
[1672919867676,20.0,13.299,13.287,56.49]
[1672919869349,76.44,13.299,13.282,20.0]
[1672919869544,38.49,13.29,13.277,38.62869134]
[1672919869757,56.48,13.289,13.273,38.62869134]
[1672919869960,56.48,13.289,13.275,38.62869134]
[1672919870171,38.49,13.29,13.276,76.54]
[1672919870391,38.49,13.29,13.276,115.16869134]
[1672919871008,38.49,13.29,13.277,20.0]
[1672919871228,38.49,13.29,13.278,56.53]
[1672919871682,38.49,13.29,13.277,58.62869134]
[1672919871974,38.49,13.29,13.277,95.15869134]
[1672919872165,56.48,13.289,13.277,95.15869134]
[1672919872376,38.49,13.29,13.278,20.0]
[1672919872820,38.49,13.29,13.28,20.0]
[1672919875334,38.49,13.29,13.279,95.14869134]
[1672919875979,20.0,13.289,13.278,56.53]
[1672919876297,20.0,13.289,13.277,56.53]
[1672919876622,20.0,13.289,13.275,56.54]
[1672919877144,76.48,13.289,13.275,56.54]
[1672919877871,131.97407121,13.289,13.275,56.54]
[1672919878613,131.97407121,13.289,13.274,56.55]
[1672919878824,131.97407121,13.289,13.275,20.0]
[1672919879034,131.97407121,13.289,13.276,56.54]
[1672919881038,56.48,13.289,13.276,56.54]
[1672919881227,192.35,13.29,13.276,56.54]
[1672919881559,38.39,13.29,13.277,20.0]
[1672919882088,38.39,13.29,13.279,38.62869134]
[1672919882491,38.39,13.29,13.28,20.0]
[1672919882692,38.39,13.29,13.282,20.0]
[1672919883548,38.39,13.29,13.281,56.52]
[1672919883967,38.39,13.29,13.279,115.14869134]
[1672919884284,38.39,13.29,13.279,76.52]
[1672919884904,38.39,13.29,13.279,56.52]
[1672919885860,38.39,13.29,13.28,20.0]
[1672919887144,38.39,13.29,13.279,56.52]
[1672919887333,38.39,13.29,13.278,95.15869134]
[1672919887543,38.39,13.29,13.279,20.0]
[1672919887872,38.39,13.29,13.278,38.62869134]
[1672919888400,38.39,13.29,13.28,20.0]
[1672919888824,38.39,13.29,13.279,20.0]
[1672919889010,38.39,13.29,13.278,56.53]
[1672919889225,38.39,13.29,13.277,56.53]
[1672919889440,20.0,13.289,13.277,56.53]
[1672919889652,20.0,13.289,13.276,56.54]
[1672919890802,248.85,13.29,13.276,56.54]
[1672919891022,192.37,13.29,13.276,56.54]
[1672919891424,38.49,13.29,13.278,20.0]
[1672919891630,38.49,13.29,13.279,56.52]
[1672919891859,38.49,13.29,13.28,20.0]
[1672919893122,38.49,13.29,13.279,56.52]
[1672919895423,38.49,13.29,13.279,95.14869134]
[1672919895839,38.49,13.29,13.28,20.0]
[1672919896049,38.49,13.29,13.281,56.52]
[1672919896258,38.49,13.29,13.282,20.0]
[1672919897225,112.7765,13.292,13.282,20.0]
[1672919897535,112.7765,13.292,13.281,56.52]
[1672919898396,38.49,13.29,13.279,56.52]
[1672919900909,112.7765,13.292,13.28,20.0]
[1672919901976,112.7765,13.292,13.282,20.0]
[1672919905644,116.0626,13.293,13.282,20.0]
[1672919905855,116.0626,13.293,13.281,56.52]
[1672919906070,116.0626,13.293,13.282,17.0]
[1672919906258,116.0626,13.293,13.283,76.51]
[1672919907429,150.2306,13.3,13.284,17.0]
[1672919907638,150.2306,13.3,13.286,20.0]
[1672919907838,150.2306,13.3,13.287,56.49]
[1672919908050,150.2306,13.3,13.288,20.0]
[1672919912786,150.2306,13.3,13.287,56.49]
[1672919913620,150.2306,13.3,13.286,56.49]
[1672919913842,150.2306,13.3,13.287,20.0]
[1672919914881,20.0,13.299,13.286,56.49]
[1672919915090,20.0,13.299,13.285,20.0]
[1672919915621,150.2306,13.3,13.285,20.0]
[1672919915841,150.2306,13.3,13.287,20.0]
[1672919916034,150.2306,13.3,13.288,56.49]
[1672919917114,20.0,13.299,13.288,56.49]
[1672919917304,20.0,13.299,13.286,56.49]
[1672919918057,20.0,13.297,13.285,20.0]
[1672919918368,56.44,13.298,13.285,20.0]
[1672919918678,56.44,13.299,13.285,42.41737149]
[1672919918893,20.0,13.298,13.285,20.0]
[1672919920049,56.44,13.299,13.285,20.0]
[1672919920362,248.86,13.31,13.286,95.90737149]
[1672919920763,76.41,13.306,13.287,171.08290149]
[1672919920970,76.41,13.306,13.289,20.0]
[1672919921180,76.41,13.306,13.29,73.48]
[1672919921181,20.0,13.306,13.29,73.48]
[1672919921407,20.0,13.306,13.291,20.0]
[1672919921626,20.0,13.306,13.292,56.47]
[1672919922027,56.41,13.305,13.292,56.47]
[1672919922358,20.0,13.303,13.292,56.47]
[1672919922570,20.0,13.303,13.291,20.0]
[1672919923622,76.42,13.303,13.29,56.48]
[1672919924152,20.0,13.303,13.29,56.48]
[1672919925091,38.49,13.3,13.289,56.48]
[1672919925283,152.255,13.3,13.289,56.48]
[1672919925506,20.0,13.299,13.288,56.49]
[1672919926257,152.255,13.3,13.287,171.2611]
[1672919926456,152.255,13.3,13.288,20.0]
[1672919926665,152.255,13.3,13.289,56.48]
[1672919926874,152.255,13.3,13.29,20.0]
[1672919927079,152.255,13.3,13.289,56.48]
[1672919927297,152.255,13.3,13.288,76.49]
[1672919929920,152.255,13.3,13.288,56.49]
[1672919930860,20.0,13.299,13.288,56.49]
[1672919932246,152.255,13.3,13.288,56.49]
[1672919933828,20.0,13.299,13.288,56.49]
[1672919934234,20.0,13.299,13.287,171.2611]
[1672919935518,152.255,13.3,13.287,171.2611]
[1672919936330,20.0,13.299,13.287,171.2611]
[1672919936856,20.0,13.299,13.287,114.7711]
[1672919938970,152.255,13.3,13.287,114.7711]
[1672919939819,152.255,13.3,13.288,56.49]
[1672919940031,152.255,13.3,13.289,20.0]
[1672919940648,113.765,13.3,13.289,20.0]
[1672919941811,113.765,13.3,13.288,76.49]
[1672919942019,113.765,13.3,13.288,56.49]
[1672919942230,152.255,13.3,13.288,56.49]
[1672919942975,152.255,13.3,13.289,20.0]
[1672919943301,113.765,13.3,13.291,20.0]
[1672919943483,56.41,13.305,13.291,20.0]
[1672919943696,20.0,13.304,13.292,56.47]
[1672919943920,20.0,13.305,13.292,56.47]
[1672919944113,20.0,13.304,13.292,56.47]
[1672919944536,20.0,13.304,13.29,56.48]
[1672919944866,20.0,13.299,13.29,56.48]
[1672919945076,20.0,13.299,13.289,56.48]
[1672919945297,20.0,13.299,13.288,56.49]
[1672919947798,20.0,13.299,13.287,114.7711]
[1672919950332,213.4521,13.3,13.287,114.7711]
[1672919950551,157.0221,13.3,13.289,20.0]
[1672919950878,157.0221,13.3,13.287,114.7711]
[1672919951817,157.0221,13.3,13.289,20.0]
[1672919952240,157.0221,13.3,13.288,56.49]
[1672919954974,131.4121,13.3,13.288,56.49]
[1672919955497,131.4121,13.3,13.287,171.2611]
[1672919958859,131.4121,13.3,13.287,56.49]
[1672919958860,20.0,13.299,13.287,56.49]
[1672919959172,20.0,13.297,13.284,56.5]
[1672919959383,76.45,13.296,13.28,20.0]
[1672919959595,20.0,13.295,13.282,20.0]
[1672919959811,20.0,13.294,13.282,20.0]
[1672919960122,20.0,13.294,13.281,56.52]
[1672919960316,20.0,13.292,13.281,56.52]
[1672919960965,115.5033,13.293,13.281,56.52]
[1672919961590,20.0,13.292,13.28,56.52]
[1672919963063,115.5033,13.293,13.28,56.52]
[1672919964851,115.5033,13.293,13.281,20.0]
[1672919965065,115.5033,13.293,13.282,56.51]
[1672919965689,115.5033,13.293,13.282,20.0]
[1672919966009,115.5033,13.293,13.281,56.52]
[1672919967890,115.5033,13.293,13.28,56.52]
[1672919968090,20.0,13.292,13.28,56.52]
[1672919975049,12.88,13.29,13.28,56.52]
[1672919975259,12.88,13.29,13.277,56.53]
[1672919975998,20.0,13.289,13.277,56.53]
[1672919976210,20.0,13.289,13.263,522.82185764]
[1672919976211,56.49,13.288,13.274,56.55]
[1672919976406,20.0,13.287,13.269,56.57]
[1672919976611,76.49,13.286,13.27,3.90110239]
[1672919976826,20.0,13.285,13.271,56.56]
[1672919977041,20.0,13.283,13.272,3.90051447]
[1672919977248,20.0,13.283,13.273,56.55]
[1672919977685,20.0,13.283,13.269,56.57]
[1672919977895,20.0,13.283,13.269,60.47139641]
[1672919978215,20.0,13.283,13.27,23.90110239]
[1672919978404,20.0,13.283,13.271,60.46080841]
[1672919978731,20.0,13.283,13.272,23.90051447]
[1672919978944,20.0,13.283,13.273,60.45022059]
[1672919979142,20.0,13.283,13.274,3.89992674]
[1672919979351,20.0,13.283,13.271,56.56]
[1672919979563,20.0,13.283,13.272,3.90051447]
[1672919979773,20.0,13.283,13.273,56.55]
[1672919979982,20.0,13.284,13.274,3.89992674]
[1672919980193,20.0,13.284,13.272,20.0]
[1672919980414,20.0,13.284,13.273,60.45022059]
[1672919980623,20.0,13.284,13.274,3.89992674]
[1672919980835,6.44,13.29,13.276,20.0]
[1672919981036,6.44,13.29,13.277,56.53]
[1672919981245,6.44,13.29,13.278,20.0]
[1672919981455,6.44,13.29,13.28,20.0]
[1672919982396,6.44,13.29,13.279,56.52]
[1672919985140,6.44,13.29,13.277,56.53]
[1672919985571,6.44,13.29,13.276,56.54]
[1672919987333,6.44,13.29,13.275,56.54]
[1672919987543,6.44,13.29,13.276,40.0]
[1672919987864,32.22,13.29,13.277,56.53]
[1672919988294,20.0,13.289,13.277,56.53]
[1672919988716,20.0,13.288,13.277,56.53]
[1672919988902,56.49,13.287,13.271,56.56]
[1672919989118,20.0,13.285,13.271,3.90079329]
[1672919989328,20.0,13.283,13.272,60.45049936]
[1672919989572,20.0,13.283,13.273,3.90020547]
[1672919989875,20.0,13.283,13.273,3.89991163]
[1672919990188,20.0,13.283,13.271,56.56]
[1672919990405,20.0,13.283,13.272,3.90049936]
[1672919990599,20.0,13.283,13.273,56.55]
[1672919990805,20.0,13.283,13.274,3.89991163]
[1672919991016,20.0,13.283,13.273,56.55]
[1672919991342,20.0,13.283,13.274,3.89991163]
[1672919991537,20.0,13.283,13.271,20.0]
[1672919991753,20.0,13.283,13.272,60.45049936]
[1672919991970,20.0,13.283,13.273,3.90020547]
[1672919992180,20.0,13.283,13.273,3.89991163]
[1672919992394,20.0,13.283,13.27,56.56]
[1672919992704,20.0,13.283,13.271,3.90079329]
[1672919992917,20.0,13.283,13.272,56.55]
[1672919993128,20.0,13.283,13.273,3.90020547]
[1672919993344,20.0,13.283,13.273,3.89991163]
[1672919993534,20.0,13.283,13.272,56.55]
[1672919993745,20.0,13.283,13.273,3.90020547]
[1672919993957,20.0,13.283,13.273,3.89991163]
[1672919994168,20.0,13.283,13.27,56.56]
[1672919994393,20.0,13.283,13.271,23.90079329]
[1672919994592,20.0,13.283,13.272,60.45049936]
[1672919994799,20.0,13.283,13.273,3.90020547]
[1672919995011,20.0,13.283,13.273,3.89991163]
[1672919995655,20.0,13.285,13.273,3.89991163]
[1672919995969,20.0,13.283,13.273,3.89991163]
[1672919996502,20.0,13.283,13.27,56.56]
[1672919996684,20.0,13.283,13.271,3.90079329]
[1672919996895,20.0,13.283,13.272,56.55]
[1672919997108,20.0,13.283,13.273,23.90020547]
[1672919997331,20.0,13.283,13.274,3.89991163]
[1672919997650,20.0,13.283,13.27,56.56]
[1672919997963,20.0,13.284,13.272,20.0]
[1672919998177,20.0,13.284,13.273,60.45020547]
[1672919998489,20.0,13.284,13.274,3.89991163]
[1672919998705,20.0,13.284,13.27,56.56]
[1672919999015,20.0,13.284,13.271,23.90079329]
[1672919999207,20.0,13.284,13.272,60.45049936]
[1672919999431,20.0,13.284,13.273,3.90020547]
[1672919999639,20.0,13.284,13.273,3.89991163]
[1672919999954,20.0,13.283,13.273,3.89991163]
[1672920000165,20.0,13.283,13.27,56.56]
[1672920000395,20.0,13.283,13.271,3.90079329]
[1672920000591,20.0,13.283,13.272,56.55]
[1672920000799,20.0,13.283,13.273,3.90020547]
[1672920001002,20.0,13.283,13.273,3.89991163]
[1672920001213,20.0,13.283,13.27,56.56]
[1672920001428,20.0,13.283,13.271,23.90079329]
[1672920001640,20.0,13.283,13.272,60.45049936]
[1672920001859,20.0,13.283,13.273,3.90020547]
[1672920002076,6.43,13.28,13.273,3.90020547]
[1672920002386,6.33789627,13.28,13.273,3.90020547]
[1672920002784,40.0,13.284,13.273,3.90020547]
[1672920003003,20.0,13.284,13.273,46.31757696]
[1672920003311,20.0,13.285,13.274,78.96737149]
[1672920003526,20.0,13.285,13.275,20.0]
[1672920004490,20.0,13.285,13.274,56.55]
[1672920004712,20.0,13.285,13.273,3.90020547]
[1672920005209,20.0,13.284,13.273,3.90020547]
[1672920005652,76.5,13.284,13.273,3.90020547]
[1672920005959,20.0,13.282,13.273,3.90020547]
[1672920006154,6.45,13.28,13.273,3.90020547]
[1672920010186,6.45,13.28,13.27,56.56]
[1672920010374,20.0,13.283,13.27,56.56]
[1672920012277,20.0,13.284,13.27,56.56]
[1672920012485,20.0,13.283,13.27,56.56]
[1672920013772,20.0,13.283,13.269,56.57]
[1672920013990,20.0,13.281,13.27,20.0]
[1672920014291,20.0,13.281,13.271,56.56]
[1672920014708,6.42,13.28,13.271,56.56]
[1672920014896,6.42,13.28,13.269,56.57]
[1672920015100,109.5411,13.279,13.269,56.57]
[1672920015331,20.0,13.278,13.268,112.0803]
[1672920015536,20.0,13.278,13.269,56.57]
[1672920015725,109.5411,13.279,13.269,56.57]
[1672920024028,109.5411,13.279,13.268,112.0803]
[1672920026756,109.5411,13.279,13.266,56.58]
[1672920028669,109.5411,13.279,13.267,20.0]
[1672920028868,109.5411,13.279,13.268,56.57]
[1672920029077,109.5411,13.279,13.267,20.0]
[1672920029502,109.5411,13.279,13.266,76.58]
[1672920030673,109.5411,13.279,13.266,56.58]
[1672920032026,109.5411,13.279,13.267,20.0]
[1672920033100,109.5411,13.279,13.266,56.58]
[1672920034857,109.5411,13.279,13.265,56.58]
[1672920035188,166.0611,13.279,13.267,20.0]
[1672920035385,109.5411,13.279,13.267,20.0]
[1672920037719,166.0611,13.279,13.266,40.0]
[1672920038031,166.0611,13.279,13.266,20.0]
[1672920038240,20.0,13.278,13.262,56.6]
[1672920038461,6.4,13.27,13.261,164.7176]
[1672920038657,6.4,13.27,13.261,108.1176]
[1672920038974,6.4,13.27,13.262,20.0]
[1672920041687,56.54,13.275,13.262,20.0]
[1672920041920,20.0,13.274,13.263,56.59]
[1672920042116,20.0,13.274,13.264,20.0]
[1672920042545,20.0,13.275,13.264,20.0]
[1672920044317,20.0,13.275,13.262,76.6]
[1672920044763,76.54,13.275,13.262,76.6]
[1672920045163,20.0,13.275,13.262,76.6]
[1672920045710,20.0,13.275,13.262,99.01737149]
[1672920046022,20.0,13.275,13.262,142.67613331]
[1672920048128,20.0,13.275,13.262,120.25876182]
[1672920049702,20.0,13.275,13.263,22.41737149]
[1672920049919,20.0,13.275,13.264,76.59]
[1672920051382,20.0,13.275,13.264,99.00737149]
[1672920052452,20.0,13.275,13.264,76.59]
[1672920053580,20.0,13.275,13.264,56.59]
[1672920053808,6.4,13.27,13.262,56.6]
[1672920054007,6.4,13.27,13.263,20.0]
[1672920056851,6.4,13.27,13.262,20.0]
[1672920057064,6.4,13.27,13.262,76.6]
[1672920057459,20.0,13.275,13.262,76.6]